fUSD/lending_fUSD_20260606
["ID","MTS","AMOUNT","RATE_DAILY","PERIOD"]
[424297186,1780755070000,-150.0,0.00035753,120]
[424297216,1780755070000,-192.967881,0.00035838,30]
[424297214,1780755070000,-151.0,0.00035838,30]
[424297236,1780755070000,-342.548366,0.00035838,30]
[424297211,1780755070000,-269.157051,0.00035838,2]
[424297212,1780755070000,-151.0,0.00035838,30]
[424297184,1780755070000,-666.0,0.00035749,5]
[424297183,1780755070000,-150.0,0.00035744,30]
[424297181,1780755070000,-150.0,0.00035703,30]
[424297191,1780755070000,-151.0,0.00035814,30]
[424297193,1780755070000,-151.0,0.00035814,30]
[424297195,1780755070000,-151.0,0.00035814,30]
[424297194,1780755070000,-151.0,0.00035814,30]
[424297196,1780755070000,-150.0,0.00035826,30]
[424297198,1780755070000,-200.0,0.00035834,2]
[424297192,1780755070000,-195.41723,0.00035814,30]
[424297197,1780755070000,-200.0,0.00035834,2]
[424297182,1780755070000,-811.0,0.0003572,5]
[424297203,1780755070000,-5000.0,0.00035837,2]
[424297199,1780755070000,-200.0,0.00035834,2]
[424297200,1780755070000,-200.0,0.00035834,2]
[424297201,1780755070000,-5000.0,0.00035837,2]
[424297202,1780755070000,-5000.0,0.00035837,2]
[424297240,1780755070000,-365607.32777879,0.00035845,30]
[424297205,1780755070000,-250.0,0.00035837,2]
[424297208,1780755070000,-250.0,0.00035837,2]
[424297206,1780755070000,-250.0,0.00035837,2]
[424297207,1780755070000,-250.0,0.00035837,2]
[424297210,1780755070000,-269.157051,0.00035838,2]
[424297204,1780755070000,-10000.0,0.00035837,2]
[424297209,1780755070000,-269.157051,0.00035838,2]
[424297241,1780755071000,-1856.31450221,0.00035845,30]
[424297242,1780755071000,-242.15909246,0.00034779,10]
[424297245,1780755071000,-1856.02401269,0.00034779,10]
[424297244,1780755071000,-124.42466826,0.00034779,10]
[424297243,1780755071000,-707.09512936,0.00034779,10]
[424297272,1780755072000,-833.92535152,0.00034779,10]
[424297271,1780755072000,-7760.57427127,0.00034779,10]
[424297267,1780755072000,-862.28603014,0.00034779,10]
[424297268,1780755072000,-250.0,0.00034779,10]
[424297263,1780755072000,-200.0,0.00034779,10]
[424297265,1780755072000,-152.0,0.00034779,10]
[424297281,1780755072000,-152.0,0.00034779,10]
[424297283,1780755072000,-250.0,0.00034779,10]
[424297275,1780755072000,-251.11897888,0.00034779,10]
[424297282,1780755072000,-301.14337869,0.00034779,10]
[424297285,1780755072000,-200.0,0.00034779,10]
[424297276,1780755072000,-200.0,0.00034779,10]
[424297273,1780755072000,-260.4103811,0.00034779,10]
[424297274,1780755072000,-151.0,0.00034779,10]
[424297277,1780755072000,-862.28603014,0.00034779,10]
[424297266,1780755072000,-290.3986294,0.00034779,10]
[424297278,1780755072000,-11455.01673214,0.00034779,10]
[424297284,1780755072000,-894.19061325,0.00034779,10]
[424297270,1780755072000,-500.0,0.00034779,10]
[424297250,1780755072000,-1651.81367706,0.00020315,2]
[424297269,1780755072000,-151.0,0.00034779,10]
[424297280,1780755072000,-442.2156097,0.00034779,10]
[424297247,1780755072000,-151.0,0.00018123,2]
[424297248,1780755072000,-151.0,0.00018123,2]
[424297246,1780755072000,-151.0,0.00018123,2]
[424297249,1780755072000,-151.0,0.00018123,2]
[424297260,1780755072000,-215.80795776,0.00032,30]
[424297255,1780755072000,-1116.0,0.00023,2]
[424297253,1780755072000,-1776.30922209,0.00021411,2]
[424297258,1780755072000,-1116.0,0.00024,2]
[424297252,1780755072000,-374.73402781,0.00020863,2]
[424297254,1780755072000,-1842.0326633,0.00021959,2]
[424297256,1780755072000,-2884.75459676,0.00023055,2]
[424297251,1780755072000,-1338.1967553,0.00020863,2]
[424297257,1780755072000,-2991.49051684,0.00023603,2]
[424297259,1780755072000,-1374.2831557,0.00027397,2]
[424297261,1780755072000,-9190.27948985,0.00034779,10]
[424297262,1780755072000,-151.0,0.00034779,10]
[424297264,1780755072000,-200.0,0.00034779,10]
[424297279,1780755072000,-200.0,0.00034779,10]
[424297318,1780755072000,-4785.67071674,0.00034779,10]
[424297288,1780755072000,-864.78058953,0.00034779,10]
[424297302,1780755072000,-500.0,0.00022507,2]
[424297312,1780755072000,-12318.36988822,0.00034779,10]
[424297319,1780755072000,-1407.52319047,0.00034779,10]
[424297316,1780755072000,-200.0,0.00034779,10]
[424297315,1780755072000,-210.83079115,0.00034779,10]
[424297311,1780755072000,-200.0,0.00034779,10]
[424297313,1780755072000,-200.0,0.00034779,10]
[424297314,1780755072000,-961.58486558,0.00034779,10]
[424297317,1780755072000,-290.3986294,0.00034779,10]
[424297325,1780755072000,-61.52676604,0.00034779,10]
[424297322,1780755072000,-1130.65951264,0.00025,2]
[424297326,1780755072000,-89.47323396,0.00034779,10]
[424297321,1780755072000,-2054.15682156,0.00023603,2]
[424297324,1780755072000,-2461.06988307,0.00034779,10]
[424297320,1780755072000,-1980.8648231,0.00023055,2]
[424297323,1780755072000,-151.0,0.00031886,7]
[424297327,1780755072000,-280.03725111,0.00034779,10]
[424297304,1780755072000,-41.34913554,0.00034779,10]
[424297287,1780755072000,-8047.71551931,0.00034779,10]
[424297303,1780755072000,-1410.18787185,0.00022507,2]
[424297307,1780755072000,-996.70370614,0.00034779,10]
[424297298,1780755072000,-927.27566594,0.00034779,10]
[424297299,1780755072000,-250.0,0.00034779,10]
[424297289,1780755072000,-270.0455652,0.00034779,10]
[424297297,1780755072000,-152.0,0.00034779,10]
[424297286,1780755072000,-500.0,0.00034779,10]
[424297294,1780755072000,-200.0,0.00034779,10]
[424297292,1780755072000,-151.0,0.00034779,10]
[424297290,1780755072000,-151.0,0.00034779,10]
[424297306,1780755072000,-151.0,0.00034779,10]
[424297291,1780755072000,-260.4103811,0.00034779,10]
[424297293,1780755072000,-894.19061325,0.00034779,10]
[424297296,1780755072000,-200.0,0.00034779,10]
[424297300,1780755072000,-8345.48099352,0.00034779,10]
[424297309,1780755072000,-896.77747134,0.00034779,10]
[424297308,1780755072000,-151.0,0.00034779,10]
[424297310,1780755072000,-270.0455652,0.00034779,10]
[424297305,1780755072000,-280.03725111,0.00034779,10]
[424297301,1780755072000,-158.65086446,0.00034779,10]
[424297295,1780755072000,-11878.85235123,0.00034779,10]
[424297329,1780755073000,-200.0,0.00034779,10]
[424297331,1780755073000,-561.90758915,0.00034779,10]
[424297330,1780755073000,-929.95823778,0.00034779,10]
[424297333,1780755073000,-1748.17389532,0.00034779,10]
[424297334,1780755073000,-1414.36789823,0.00034764,10]
[424297332,1780755073000,-8311.3432839,0.00034779,10]
[424297335,1780755073000,-3015.56534779,0.00034764,10]
[424297328,1780755073000,-151.0,0.00034779,10]
[424297341,1780755603000,151.0,0.00030137,120]
[424297342,1780755633000,151.0,0.00030137,120]
[424297343,1780755663000,168.0,0.00030137,120]
[424297345,1780755745000,102424.0,0.0003013,120]
[424297355,1780756116000,-150.0,6.942e-05,2]
[424297354,1780756116000,-150.0,6.933e-05,2]
[424297356,1780756116000,-2806.252,7.004e-05,2]
[424297357,1780756116000,-181.825,7.004e-05,2]
[424297358,1780756116000,-300.0,7.139e-05,2]
[424297359,1780756116000,-150.0,7.139e-05,2]
[424297360,1780756116000,-422.8013517,7.139e-05,2]
[424297361,1780756116000,-77.1986483,7.139e-05,2]
[424297363,1780756116000,-263.11894346,7.146e-05,2]
[424297364,1780756116000,-220.38752698,7.146e-05,2]
[424297366,1780756116000,-502.90380418,7.146e-05,2]
[424297365,1780756116000,-500.0,7.146e-05,2]
[424297367,1780756116000,-500.0,7.146e-05,2]
[424297368,1780756116000,-500.0,7.146e-05,2]
[424297369,1780756116000,-1097.14292241,7.147e-05,2]
[424297362,1780756116000,-500.12650637,7.139e-05,2]
[424297370,1780756116000,-2232.82309726,7.147e-05,2]
[424297373,1780756140000,-500.0,7.139e-05,2]
[424297372,1780756140000,-500.0,7.139e-05,2]
[424297371,1780756140000,-500.0,7.139e-05,2]
[424297378,1780756141000,-500.0,7.139e-05,2]
[424297376,1780756141000,-500.0,7.139e-05,2]
[424297379,1780756141000,-371.96994771,7.139e-05,2]
[424297374,1780756141000,-500.0,7.139e-05,2]
[424297377,1780756141000,-500.0,7.139e-05,2]
[424297380,1780756141000,-276.7596177,7.139e-05,2]
[424297375,1780756141000,-500.0,7.139e-05,2]
[424297382,1780756141000,-500.0,7.139e-05,2]
[424297387,1780756141000,-1052.7816783,7.147e-05,2]
[424297381,1780756141000,-500.0,7.139e-05,2]
[424297386,1780756141000,-500.0,7.139e-05,2]
[424297384,1780756141000,-500.0,7.139e-05,2]
[424297385,1780756141000,-500.0,7.139e-05,2]
[424297383,1780756141000,-250.0,7.139e-05,2]
[424297393,1780756166000,-2741.28036167,7.147e-05,2]
[424297391,1780756166000,-3328.00017259,7.147e-05,2]
[424297392,1780756166000,-4541.00017259,7.147e-05,2]
[424297390,1780756166000,-500.0,7.139e-05,2]
[424297389,1780756166000,-713.0,7.123e-05,2]
[424297394,1780756191000,-4057.4963925,7.147e-05,2]
[424297419,1780756232000,-500.0,7.139e-05,2]
[424297416,1780756232000,-500.0,7.139e-05,2]
[424297418,1780756232000,-500.0,7.139e-05,2]
[424297423,1780756232000,-500.0,7.139e-05,2]
[424297425,1780756232000,-500.0,7.139e-05,2]
[424297427,1780756232000,-500.0,7.139e-05,2]
[424297428,1780756232000,-500.0,7.139e-05,2]
[424297424,1780756232000,-500.0,7.139e-05,2]
[424297431,1780756232000,-500.0,7.139e-05,2]
[424297433,1780756232000,-578.29989338,7.139e-05,2]
[424297415,1780756232000,-500.0,7.139e-05,2]
[424297426,1780756232000,-500.0,7.139e-05,2]
[424297435,1780756232000,-500.0,7.139e-05,2]
[424297455,1780756232000,-500.0,7.139e-05,2]
[424297414,1780756232000,-500.0,7.139e-05,2]
[424297437,1780756232000,-500.0,7.139e-05,2]
[424297403,1780756232000,-1850.0,7.041e-05,2]
[424297404,1780756232000,-470.35144812,7.041e-05,2]
[424297405,1780756232000,-501.55199785,7.041e-05,2]
[424297406,1780756232000,-485.26362913,7.041e-05,2]
[424297408,1780756232000,-500.0,7.139e-05,2]
[424297417,1780756232000,-500.0,7.139e-05,2]
[424297409,1780756232000,-500.0,7.139e-05,2]
[424297411,1780756232000,-500.0,7.139e-05,2]
[424297413,1780756232000,-500.0,7.139e-05,2]
[424297412,1780756232000,-500.0,7.139e-05,2]
[424297410,1780756232000,-500.0,7.139e-05,2]
[424297421,1780756232000,-500.0,7.139e-05,2]
[424297422,1780756232000,-500.0,7.139e-05,2]
[424297407,1780756232000,-25354.6860249,7.041e-05,2]
[424297439,1780756232000,-500.0,7.139e-05,2]
[424297472,1780756232000,-215.80795776,7.36e-05,2]
[424297443,1780756232000,-500.0,7.139e-05,2]
[424297497,1780756232000,-927.84310338,0.000107,2]
[424297496,1780756232000,-20180.68364266,0.000107,2]
[424297495,1780756232000,-89010.90800961,0.000107,2]
[424297494,1780756232000,-1613.3,0.00010687,2]
[424297493,1780756232000,-1851.09723873,9.9e-05,2]
[424297492,1780756232000,-1642.11886444,9.9e-05,2]
[424297441,1780756232000,-500.0,7.139e-05,2]
[424297487,1780756232000,-500.0,8.219e-05,2]
[424297485,1780756232000,-500.0,8.219e-05,2]
[424297482,1780756232000,-500.0,8.219e-05,2]
[424297489,1780756232000,-500.0,8.219e-05,2]
[424297478,1780756232000,-250.0,7.626e-05,2]
[424297480,1780756232000,-386.15,7.862e-05,2]
[424297476,1780756232000,-155.90479871,7.36e-05,2]
[424297491,1780756232000,-500.0,8.219e-05,2]
[424297483,1780756232000,-432.5865872,8.219e-05,2]
[424297474,1780756232000,-160.0,7.36e-05,2]
[424297447,1780756232000,-500.0,7.139e-05,2]
[424297451,1780756232000,-500.0,7.139e-05,2]
[424297449,1780756232000,-500.0,7.139e-05,2]
[424297453,1780756232000,-357.82998933,7.139e-05,2]
[424297457,1780756232000,-500.0,7.139e-05,2]
[424297445,1780756232000,-500.0,7.139e-05,2]
[424297461,1780756232000,-500.0,7.139e-05,2]
[424297463,1780756232000,-500.0,7.139e-05,2]
[424297459,1780756232000,-500.0,7.139e-05,2]
[424297468,1780756232000,-500.0,7.139e-05,2]
[424297470,1780756232000,-154.27126889,7.146e-05,2]
[424297466,1780756232000,-500.0,7.139e-05,2]
[424297525,1780756238000,-166.6,0.0001196,2]
[424297518,1780756238000,-7712.61,0.00011099,2]
[424297527,1780756238000,-177.67,0.00012329,2]
[424297522,1780756238000,-5299.64593291,0.00011626,2]
[424297520,1780756238000,-500.0,0.00011099,2]
[424297524,1780756238000,-199.5,0.00011942,2]
[424297523,1780756238000,-166.66,0.00011815,2]
[424297533,1780756238000,-166.66,0.00012986,2]
[424297529,1780756238000,-200.0,0.00012443,2]
[424297528,1780756238000,-395.39558197,0.0001234,2]
[424297530,1780756238000,-166.66,0.00012596,2]
[424297532,1780756238000,-8261.06,0.00012752,2]
[424297531,1780756238000,-5299.64593291,0.00012717,2]
[424297536,1780756238000,-395.39558197,0.00013194,2]
[424297526,1780756238000,-166.66,0.00012205,2]
[424297521,1780756238000,-395.39558197,0.00011487,2]
[424297535,1780756238000,-1500.0,0.00013142,2]
[424297517,1780756238000,-395.39558197,0.00011099,2]
[424297502,1780756238000,-215.80795776,7.366e-05,2]
[424297503,1780756238000,-35030.02111809,0.000107,2]
[424297504,1780756238000,-5299.64593291,0.000109,2]
[424297508,1780756238000,-8222.66,0.00010924,2]
[424297507,1780756238000,-5299.64593291,0.000109,2]
[424297505,1780756238000,-5299.64593291,0.000109,2]
[424297519,1780756238000,-209.37,0.00011099,2]
[424297513,1780756238000,-395.39558197,0.00011099,2]
[424297511,1780756238000,-1491.73,0.00011089,2]
[424297512,1780756238000,-150.99,0.00011089,2]
[424297506,1780756238000,-5299.64593291,0.000109,2]
[424297514,1780756238000,-395.39558197,0.00011099,2]
[424297509,1780756238000,-9999.99,0.00010924,2]
[424297515,1780756238000,-395.39558197,0.00011099,2]
[424297510,1780756238000,-150.0,0.00011089,2]
[424297534,1780756238000,-32000.0,0.00013,2]
[424297516,1780756238000,-395.39558197,0.00011099,2]
[424297538,1780756238000,-150.0,0.00013488,2]
[424297555,1780756238000,-150.0,0.00013516,2]
[424297556,1780756238000,-422.33550215,0.00013518,2]
[424297561,1780756238000,-150.0,0.00013545,2]
[424297557,1780756238000,-150.0,0.00013525,2]
[424297560,1780756238000,-150.0,0.00013544,2]
[424297564,1780756238000,-150.0,0.00013561,2]
[424297563,1780756238000,-150.0,0.00013556,2]
[424297565,1780756238000,-150.0,0.00013563,2]
[424297570,1780756238000,-150.0,0.00013581,2]
[424297571,1780756238000,-150.0,0.00013586,2]
[424297568,1780756238000,-150.0,0.00013576,2]
[424297566,1780756238000,-422.33550215,0.00013563,2]
[424297569,1780756238000,-422.33550215,0.00013578,2]
[424297567,1780756238000,-150.0,0.00013574,2]
[424297537,1780756238000,-166.66,0.00013376,2]
[424297553,1780756238000,-150.0,0.00013506,2]
[424297559,1780756238000,-150.0,0.00013537,2]
[424297572,1780756238000,-422.33550215,0.00013594,2]
[424297554,1780756238000,-150.0,0.00013512,2]
[424297558,1780756238000,-422.33550215,0.00013533,2]
[424297540,1780756238000,-224.38985235,0.00013488,2]
[424297541,1780756238000,-150.0,0.00013488,2]
[424297550,1780756238000,-193.2236,0.000135,2]
[424297542,1780756238000,-150.0,0.00013488,2]
[424297547,1780756238000,-150.0,0.00013488,2]
[424297543,1780756238000,-150.0,0.00013488,2]
[424297539,1780756238000,-150.0,0.00013488,2]
[424297544,1780756238000,-150.0,0.00013488,2]
[424297545,1780756238000,-150.44031966,0.00013488,2]
[424297548,1780756238000,-422.33550215,0.00013488,2]
[424297549,1780756238000,-10000.0,0.00013498,2]
[424297551,1780756238000,-198.065682,0.000135,2]
[424297562,1780756238000,-422.33550215,0.00013548,2]
[424297546,1780756238000,-150.0,0.00013488,2]
[424297552,1780756238000,-422.33550215,0.00013503,2]
[424297614,1780756239000,-500.0,0.00013699,2]
[424297612,1780756239000,-500.0,0.00013699,2]
[424297605,1780756239000,-500.0,0.00013698,2]
[424297606,1780756239000,-500.0,0.00013698,2]
[424297603,1780756239000,-500.0,0.00013698,2]
[424297602,1780756239000,-500.0,0.00013698,2]
[424297607,1780756239000,-500.0,0.00013698,2]
[424297600,1780756239000,-500.0,0.00013698,2]
[424297611,1780756239000,-500.0,0.00013699,2]
[424297601,1780756239000,-500.0,0.00013698,2]
[424297604,1780756239000,-500.0,0.00013698,2]
[424297613,1780756239000,-500.0,0.00013699,2]
[424297633,1780756239000,-422.33550215,0.0001376,2]
[424297615,1780756239000,-500.0,0.00013699,2]
[424297621,1780756239000,-150.0,0.00013712,2]
[424297617,1780756239000,-500.0,0.00013699,2]
[424297620,1780756239000,-150.0,0.00013709,2]
[424297618,1780756239000,-422.33550215,0.000137,2]
[424297616,1780756239000,-500.0,0.00013699,2]
[424297623,1780756239000,-150.0,0.00013718,2]
[424297622,1780756239000,-422.33550215,0.00013715,2]
[424297625,1780756239000,-150.0,0.00013731,2]
[424297626,1780756239000,-150.0,0.00013733,2]
[424297624,1780756239000,-422.33550215,0.0001373,2]
[424297609,1780756239000,-200.0,0.00013699,2]
[424297610,1780756239000,-166.66,0.00013699,2]
[424297599,1780756239000,-500.0,0.00013698,2]
[424297578,1780756239000,-150.0,0.00013624,2]
[424297595,1780756239000,-150.0,0.00013692,2]
[424297573,1780756239000,-150.0,0.000136,2]
[424297574,1780756239000,-150.0,0.00013603,2]
[424297584,1780756239000,-422.33550215,0.00013654,2]
[424297576,1780756239000,-150.0,0.00013611,2]
[424297585,1780756239000,-150.0,0.00013656,2]
[424297586,1780756239000,-150.0,0.0001366,2]
[424297580,1780756239000,-150.0,0.00013632,2]
[424297579,1780756239000,-422.33550215,0.00013624,2]
[424297583,1780756239000,-422.33550215,0.00013639,2]
[424297627,1780756239000,-422.33550215,0.00013745,2]
[424297581,1780756239000,-150.0,0.00013635,2]
[424297575,1780756239000,-422.33550215,0.00013609,2]
[424297577,1780756239000,-150.0,0.00013619,2]
[424297582,1780756239000,-150.0,0.00013638,2]
[424297587,1780756239000,-150.0,0.00013661,2]
[424297590,1780756239000,-150.0,0.00013675,2]
[424297589,1780756239000,-422.33550215,0.00013669,2]
[424297588,1780756239000,-150.0,0.00013664,2]
[424297598,1780756239000,-500.0,0.00013698,2]
[424297594,1780756239000,-1555.5,0.0001369,2]
[424297593,1780756239000,-150.0,0.00013689,2]
[424297591,1780756239000,-150.0,0.00013684,2]
[424297592,1780756239000,-422.33550215,0.00013684,2]
[424297596,1780756239000,-150.0,0.00013694,2]
[424297597,1780756239000,-500.0,0.00013698,2]
[424297608,1780756239000,-2500.0,0.00013699,2]
[424297628,1780756239000,-150.0,0.00013747,2]
[424297619,1780756239000,-662.6,0.000137,2]
[424297632,1780756239000,-150.0,0.0001376,2]
[424297658,1780756239000,-150.0,0.0001384,2]
[424297663,1780756239000,-150.0,0.00013862,2]
[424297662,1780756239000,-150.0,0.00013862,2]
[424297666,1780756239000,-150.0,0.00013881,2]
[424297661,1780756239000,-150.0,0.00013856,2]
[424297665,1780756239000,-150.0,0.00013881,2]
[424297670,1780756239000,-422.33550215,0.00013896,2]
[424297668,1780756239000,-150.0,0.00013891,2]
[424297669,1780756239000,-150.0,0.00013896,2]
[424297673,1780756239000,-452.0,0.00013902,2]
[424297674,1780756239000,-455.0,0.00013902,2]
[424297677,1780756239000,-150.0,0.00013919,2]
[424297664,1780756239000,-422.33550215,0.00013866,2]
[424297678,1780756239000,-150.0,0.0001392,2]
[424297676,1780756239000,-422.33550215,0.00013912,2]
[424297675,1780756239000,-150.0,0.00013905,2]
[424297679,1780756239000,-422.33550215,0.00013927,2]
[424297680,1780756239000,-150.0,0.00013928,2]
[424297681,1780756239000,-150.0,0.0001393,2]
[424297686,1780756239000,-150.0,0.00013956,2]
[424297682,1780756239000,-150.0,0.00013937,2]
[424297683,1780756239000,-422.33550215,0.00013942,2]
[424297684,1780756239000,-150.0,0.00013949,2]
[424297687,1780756239000,-422.33550215,0.00013957,2]
[424297629,1780756239000,-150.0,0.0001375,2]
[424297685,1780756239000,-150.0,0.00013954,2]
[424297672,1780756239000,-150.0,0.000139,2]
[424297667,1780756239000,-422.33550215,0.00013881,2]
[424297671,1780756239000,-150.0,0.000139,2]
[424297659,1780756239000,-150.0,0.00013844,2]
[424297631,1780756239000,-150.0,0.00013758,2]
[424297660,1780756239000,-422.33550215,0.00013851,2]
[424297634,1780756239000,-166.66,0.00013766,2]
[424297638,1780756239000,-458.0,0.00013776,2]
[424297636,1780756239000,-422.33550215,0.00013775,2]
[424297645,1780756239000,-422.33550215,0.00013806,2]
[424297639,1780756239000,-150.0,0.00013776,2]
[424297640,1780756239000,-150.0,0.00013782,2]
[424297643,1780756239000,-422.33550215,0.0001379,2]
[424297644,1780756239000,-150.0,0.00013805,2]
[424297637,1780756239000,-448.0,0.00013776,2]
[424297635,1780756239000,-150.0,0.00013769,2]
[424297641,1780756239000,-150.0,0.00013787,2]
[424297630,1780756239000,-150.0,0.00013752,2]
[424297657,1780756239000,-446.0,0.00013836,2]
[424297642,1780756239000,-150.0,0.00013787,2]
[424297656,1780756239000,-443.0,0.00013836,2]
[424297652,1780756239000,-150.0,0.00013832,2]
[424297653,1780756239000,-150.0,0.00013834,2]
[424297655,1780756239000,-422.33550215,0.00013836,2]
[424297651,1780756239000,-150.0,0.00013828,2]
[424297654,1780756239000,-166.66,0.00013836,2]
[424297649,1780756239000,-422.33550215,0.00013821,2]
[424297646,1780756239000,-150.0,0.00013806,2]
[424297648,1780756239000,-5299.64593291,0.00013809,2]
[424297647,1780756239000,-150.0,0.00013807,2]
[424297650,1780756239000,-150.0,0.00013825,2]
[424297720,1780756240000,-150.0,0.00014077,2]
[424297726,1780756240000,-150.0,0.00014101,2]
[424297725,1780756240000,-422.33550215,0.00014093,2]
[424297723,1780756240000,-150.0,0.00014087,2]
[424297731,1780756240000,-166.66,0.0001411,2]
[424297727,1780756240000,-150.0,0.00014102,2]
[424297722,1780756240000,-150.0,0.00014087,2]
[424297730,1780756240000,-422.33550215,0.00014108,2]
[424297721,1780756240000,-422.33550215,0.00014078,2]
[424297732,1780756240000,-150.0,0.00014122,2]
[424297729,1780756240000,-150.0,0.00014106,2]
[424297724,1780756240000,-150.0,0.00014093,2]
[424297728,1780756240000,-150.0,0.00014105,2]
[424297737,1780756240000,-150.0,0.00014143,2]
[424297743,1780756240000,-422.33550215,0.00014169,2]
[424297734,1780756240000,-150.0,0.00014125,2]
[424297735,1780756240000,-150.0,0.00014126,2]
[424297742,1780756240000,-150.0,0.00014169,2]
[424297733,1780756240000,-422.33550215,0.00014123,2]
[424297740,1780756240000,-422.33550215,0.00014154,2]
[424297738,1780756240000,-150.0,0.00014151,2]
[424297739,1780756240000,-150.0,0.00014151,2]
[424297744,1780756240000,-150.0,0.00014176,2]
[424297741,1780756240000,-150.0,0.00014162,2]
[424297746,1780756240000,-150.0,0.00014181,2]
[424297750,1780756240000,-150.0,0.000142,2]
[424297755,1780756240000,-150.0,0.00014225,2]
[424297736,1780756240000,-422.33550215,0.00014139,2]
[424297718,1780756240000,-150.0,0.00014064,2]
[424297690,1780756240000,-166.66,0.00013973,2]
[424297714,1780756240000,-458.0,0.00014057,2]
[424297745,1780756240000,-150.0,0.00014179,2]
[424297689,1780756240000,-422.33550215,0.00013972,2]
[424297688,1780756240000,-150.0,0.00013965,2]
[424297691,1780756240000,-150.0,0.00013975,2]
[424297693,1780756240000,-150.0,0.00013979,2]
[424297703,1780756240000,-422.33550215,0.00014017,2]
[424297706,1780756240000,-150.0,0.00014031,2]
[424297705,1780756240000,-150.0,0.00014028,2]
[424297694,1780756240000,-150.0,0.00013987,2]
[424297697,1780756240000,-422.33550215,0.00014002,2]
[424297695,1780756240000,-422.33550215,0.00013987,2]
[424297692,1780756240000,-150.0,0.00013978,2]
[424297696,1780756240000,-150.0,0.00013993,2]
[424297699,1780756240000,-150.0,0.00014006,2]
[424297698,1780756240000,-150.0,0.00014004,2]
[424297701,1780756240000,-150.0,0.00014017,2]
[424297700,1780756240000,-150.0,0.00014012,2]
[424297707,1780756240000,-150.0,0.00014033,2]
[424297709,1780756240000,-150.0,0.00014035,2]
[424297710,1780756240000,-395.39558197,0.00014047,2]
[424297708,1780756240000,-422.33550215,0.00014033,2]
[424297711,1780756240000,-422.33550215,0.00014048,2]
[424297712,1780756240000,-150.0,0.0001405,2]
[424297713,1780756240000,-150.0,0.00014053,2]
[424297715,1780756240000,-455.0,0.00014057,2]
[424297717,1780756240000,-422.33550215,0.00014063,2]
[424297716,1780756240000,-456.0,0.00014057,2]
[424297719,1780756240000,-150.0,0.00014068,2]
[424297754,1780756240000,-150.0,0.00014218,2]
[424297801,1780756240000,-422.33550215,0.00014381,2]
[424297757,1780756240000,-150.0,0.00014237,2]
[424297789,1780756240000,-1500000.0,0.00014328,2]
[424297783,1780756240000,-500.0,0.00014328,2]
[424297790,1780756240000,-150.0,0.00014331,2]
[424297784,1780756240000,-500.0,0.00014328,2]
[424297791,1780756240000,-422.33550215,0.00014335,2]
[424297785,1780756240000,-500.0,0.00014328,2]
[424297787,1780756240000,-500.0,0.00014328,2]
[424297782,1780756240000,-250.0,0.00014328,2]
[424297788,1780756240000,-500.0,0.00014328,2]
[424297793,1780756240000,-150.0,0.00014349,2]
[424297803,1780756240000,-166.66,0.00014384,2]
[424297792,1780756240000,-150.0,0.00014348,2]
[424297795,1780756240000,-150.0,0.00014352,2]
[424297796,1780756240000,-422.33550215,0.00014366,2]
[424297797,1780756240000,-150.0,0.00014368,2]
[424297794,1780756240000,-422.33550215,0.00014351,2]
[424297799,1780756240000,-150.0,0.00014372,2]
[424297798,1780756240000,-150.0,0.00014369,2]
[424297800,1780756240000,-150.0,0.00014373,2]
[424297804,1780756240000,-150.0,0.00014387,2]